[Event "55th Biel Festival MTO 2022"]
[Site "Biel"]
[Date "2022.07.15"]
[Round "1.10"]
[White "Iturrizaga Bonelli Eduardo"]
[Black "Kittler Thorsten"]
[Result "1-0"]
[ECO "A39"]
[WhiteElo "2619"]
[BlackElo "2226"]
[Annotator "ChessBase"]
[PlyCount "41"]
[EventDate "2022.07.13"]
[EventType "swiss"]
[EventCountry "SUI"]
[SourceTitle "playchess.com"]
[Source "ChessBase"]
[SourceQuality "1"]
[TimeControl "40/5400+30:1800+30"]

1. c4 {[%emt 0:00:06]} Nf6 {[%emt 0:00:12]} 2. g3 {[%emt 0:00:07]} c5 {[%emt 0:00:30]} 3. Bg2 {[%emt 0:00:05]} Nc6 {[%emt 0:00:08]} 4. Nc3 {[%emt 0:00:09]} g6 {[%emt 0:00:11]} 5. Nf3 {[%emt 0:00:06]} Bg7 {[%emt 0:00:06]} 6. d4 {[%emt 0:00:04]} cxd4 {[%emt 0:00:12]} 7. Nxd4 {[%emt 0:00:05]} O-O {[%emt 0:00:07]} 8. O-O {[%emt 0:00:04]} Nxd4 {[%emt 0:01:32]} 9. Qxd4 {[%emt 0:00:05]} d6 {[%emt 0:00:13]} 10. Qd3 {[%emt 0:00:05]} Bf5 {[%emt 0:08:33]} 11. e4 {[%emt 0:00:05]} Be6 {[%emt 0:00:05]} 12. b3 {[%emt 0:00:06]} Qa5 {[%emt 0:01:57]} 13. Bd2 {[%emt 0:00:29]} Qh5 {[%emt 0:01:24]} 14. f3 {[%emt 0:06:42]} Nd7 {[%emt 0:19:07]} 15. Rae1 {[%emt 0:02:30]} Qc5+ {[%emt 0:06:35]} 16. Kh1 {[%emt 0:01:33]} Ne5 {[%emt 0:02:00]} 17. Qc2 {[%emt 0:01:03]} Nc6 {[%emt 0:00:07]} 18. Nd5 {[%emt 0:00:40]} b5 {[%emt 0:07:49]} 19. f4 {[%emt 0:03:44]} Kh8 {[%emt 0:45:13]} 20. h3 {[%emt 0:07:46]} h6 {[%emt 0:03:29]} 21. g4 {[%emt 0:00:02]} 1-0

[Event "55th Biel Festival MTO 2022"]
[Site "Biel"]
[Date "2022.07.15"]
[Round "1.11"]
[White "Kamber Bruno"]
[Black "Puranik Abhimanyu"]
[Result "0-1"]
[ECO "B68"]
[WhiteElo "2225"]
[BlackElo "2612"]
[Annotator "ChessBase"]
[PlyCount "23"]
[EventDate "2022.07.13"]
[EventType "swiss"]
[EventCountry "SUI"]
[SourceTitle "playchess.com"]
[Source "ChessBase"]
[SourceQuality "1"]
[TimeControl "40/5400+30:1800+30"]

1. e4 {[%emt 0:00:06]} c5 {[%emt 0:01:10]} 2. Nf3 {[%emt 0:11:34]} Nc6 {[%emt 0:00:00]} 3. Nc3 {[%emt 0:00:30]} d6 {[%emt 0:00:00]} 4. d4 {[%emt 0:00:30]} cxd4 {[%emt 0:00:00]} 5. Nxd4 {[%emt 0:00:30]} Nf6 {[%emt 0:00:09]} 6. Bg5 {[%emt 0:00:30]} Bd7 {[%emt 0:00:30]} 7. Qd2 {[%emt 0:00:30]} a6 {[%emt 0:00:33]} 8. O-O-O {[%emt 0:04:39]} e6 {[%emt 0:00:26]} 9. f4 {[%emt 0:00:30]} Be7 {[%emt 0:00:15]} 10. Nf3 {[%emt 0:12:37]} h6 {[%emt 0:06:56]} 11. Bxf6 {[%emt 0:04:23]} gxf6 {[%emt 0:00:04]} 12. f5 {[%emt 0:00:30]} 0-1

[Event "55th Biel Festival MTO 2022"]
[Site "Biel"]
[Date "2022.07.15"]
[Round "1.13"]
[White "Asllani Dorian"]
[Black "Aryan Chopra"]
[Result "0-1"]
[ECO "A77"]
[WhiteElo "2220"]
[BlackElo "2610"]
[Annotator "ChessBase"]
[PlyCount "55"]
[EventDate "2022.07.13"]
[EventType "swiss"]
[EventCountry "SUI"]
[SourceTitle "playchess.com"]
[Source "ChessBase"]
[SourceQuality "1"]
[TimeControl "40/5400+30:1800+30"]

1. d4 {[%emt 0:00:05]} Nf6 {[%emt 0:00:05]} 2. c4 {[%emt 0:00:08]} g6 {[%emt 0:00:06]} 3. Nc3 {[%emt 0:00:08]} Bg7 {[%emt 0:00:07]} 4. e4 {[%emt 0:00:09]} d6 {[%emt 0:00:07]} 5. f4 {[%emt 0:00:13]} c5 {[%emt 0:00:40]} 6. d5 {[%emt 0:00:10]} O-O {[%emt 0:00:40]} 7. Nf3 {[%emt 0:00:13]} e6 {[%emt 0:00:09]} 8. Be2 {[%emt 0:00:16]} exd5 {[%emt 0:06:37]} 9. cxd5 {[%emt 0:00:13]} Nbd7 {[%emt 0:12:12]} 10. O-O {[%emt 0:02:16]} Re8 {[%emt 0:00:56]} 11. Qc2 {[%emt 0:02:59]} a6 {[%emt 0:04:54]} 12. a4 {[%emt 0:00:30]} Qc7 {[%emt 0:00:25]} 13. Nd2 {[%emt 0:09:45]} Rb8 {[%emt 0:02:08]} 14. a5 {[%emt 0:47:03]} b5 {[%emt 0:03:03]} 15. axb6 {[%emt 0:00:29]} Nxb6 {[%emt 0:00:04]} 16. Nc4 {[%emt 0:03:07]} Nxc4 {[%emt 0:07:58]} 17. Bxc4 {[%emt 0:00:09]} Rb4 {[%emt 0:00:48]} 18. Bd3 {[%emt 0:08:00]} Qe7 {[%emt 0:14:34]} 19. Bd2 {[%emt 0:06:16]} c4 {[%emt 0:05:57]} 20. Be2 {[%emt 0:00:29]} Nxe4 {[%emt 0:00:31]} 21. Nxe4 {[%emt 0:17:50]} Rxb2 {[%emt 0:00:08]} 22. Qxc4 {[%emt 0:00:04]} Qxe4 {[%emt 0:00:19]} 23. Qxe4 {[%emt 0:00:11]} Rxe4 {[%emt 0:00:06]} 24. Bf3 {[%emt 0:00:07]} Rxd2 {[%emt 0:02:49]} 25. Bxe4 {[%emt 0:00:47]} Bd4+ {[%emt 0:00:06]} 26. Kh1 {[%emt 0:00:01]} Bxa1 {[%emt 0:00:13]} 27. Rxa1 {[%emt 0:00:03]} Rd4 {[%emt 0:00:05]} 28. Bf3 {[%emt 0:00:00]} 0-1

[Event "55th Biel Festival MTO 2022"]
[Site "Biel"]
[Date "2022.07.15"]
[Round "1.14"]
[White "Huschenbeth Niclas"]
[Black "Mahitosh Dey"]
[Result "1-0"]
[ECO "C42"]
[WhiteElo "2610"]
[BlackElo "2212"]
[Annotator "ChessBase"]
[PlyCount "38"]
[EventDate "2022.07.13"]
[EventType "swiss"]
[EventCountry "SUI"]
[SourceTitle "playchess.com"]
[Source "ChessBase"]
[SourceQuality "1"]
[TimeControl "40/5400+30:1800+30"]

1. e4 {[%emt 0:00:09]} e5 {[%emt 0:00:06]} 2. Nf3 {[%emt 0:00:04]} Nf6 {[%emt 0:00:04]} 3. Nxe5 {[%emt 0:00:05]} d6 {[%emt 0:00:03]} 4. Nf3 {[%emt 0:00:06]} Nxe4 {[%emt 0:00:05]} 5. d4 {[%emt 0:00:04]} d5 {[%emt 0:00:04]} 6. Bd3 {[%emt 0:00:05]} Bd6 {[%emt 0:00:03]} 7. O-O {[%emt 0:00:11]} O-O {[%emt 0:00:08]} 8. c4 {[%emt 0:00:02]} c6 {[%emt 0:00:03]} 9. Re1 {[%emt 0:00:10]} Bf5 {[%emt 0:00:09]} 10. Qb3 {[%emt 0:00:26]} Na6 {[%emt 0:00:10]} 11. cxd5 {[%emt 0:00:48]} cxd5 {[%emt 0:00:11]} 12. Nc3 {[%emt 0:00:16]} Be6 {[%emt 0:00:43]} 13. Bb1 {[%emt 0:00:18]} Nc7 {[%emt 0:00:47]} 14. Qd1 {[%emt 0:03:29]} f5 {[%emt 0:00:06]} 15. Ne5 {[%emt 0:14:44]} Qh4 {[%emt 0:00:06]} 16. f3 {[%emt 0:23:34]} Bxe5 {[%emt 0:00:18]} 17. dxe5 {[%emt 0:00:08]} Nxc3 {[%emt 0:07:20]} 18. bxc3 {[%emt 0:00:04]} Nb5 {[%emt 0:00:11]} 19. g3 {[%emt 0:47:46]} h5 {[%emt 0:03:30]} 1-0

[Event "55th Biel Festival MTO 2022"]
[Site "Biel"]
[Date "2022.07.15"]
[Round "1.15"]
[White "Li Dominique"]
[Black "Ganguly Surya Shekhar"]
[Result "0-1"]
[ECO "C70"]
[WhiteElo "2212"]
[BlackElo "2608"]
[Annotator "ChessBase"]
[PlyCount "66"]
[EventDate "2022.07.13"]
[EventType "swiss"]
[EventCountry "SUI"]
[SourceTitle "playchess.com"]
[Source "ChessBase"]
[SourceQuality "1"]
[TimeControl "40/5400+30:1800+30"]

1. e4 {[%emt 0:00:04]} e5 {[%emt 0:00:28]} 2. Nf3 {[%emt 0:00:36]} Nc6 {[%emt 0:00:06]} 3. Bb5 {[%emt 0:00:15]} a6 {[%emt 0:00:14]} 4. Ba4 {[%emt 0:00:17]} f5 {[%emt 0:00:12]} 5. d3 {[%emt 0:08:34]} fxe4 {[%emt 0:00:23]} 6. dxe4 {[%emt 0:00:56]} Nf6 {[%emt 0:00:06]} 7. Qe2 {[%emt 0:02:20]} d6 {[%emt 0:00:54]} 8. c3 {[%emt 0:03:02]} Be7 {[%emt 0:01:02]} 9. Nbd2 {[%emt 0:04:03]} O-O {[%emt 0:13:20]} 10. h3 {[%emt 0:05:58]} Kh8 {[%emt 0:01:05]} 11. Nf1 {[%emt 0:02:16]} Qe8 {[%emt 0:10:33]} 12. Ng3 {[%emt 0:30:21]} Nh5 {[%emt 0:02:45]} 13. Nxh5 {[%emt 0:00:30]} Qxh5 {[%emt 0:00:07]} 14. Qf1 {[%emt 0:05:10]} Qg6 {[%emt 0:01:29]} 15. Bc2 {[%emt 0:01:55]} d5 {[%emt 0:04:12]} 16. Be3 {[%emt 0:01:18]} d4 {[%emt 0:04:07]} 17. Bd2 {[%emt 0:02:20]} dxc3 {[%emt 0:01:09]} 18. Bxc3 {[%emt 0:00:36]} Bb4 {[%emt 0:01:59]} 19. Bd2 {[%emt 0:06:18]} Nd4 {[%emt 0:05:25]} 20. Nxd4 {[%emt 0:00:57]} Bxd2+ {[%emt 0:00:07]} 21. Kxd2 {[%emt 0:00:09]} Qg5+ {[%emt 0:03:30]} 22. Kd1 {[%emt 0:02:35]} Rd8 {[%emt 0:01:26]} 23. Bd3 {[%emt 0:01:50]} Rxd4 {[%emt 0:00:13]} 24. Kc2 {[%emt 0:00:14]} Be6 {[%emt 0:01:12]} 25. b3 {[%emt 0:01:38]} c5 {[%emt 0:01:56]} 26. Kb2 {[%emt 0:01:02]} c4 {[%emt 0:02:21]} 27. Bc2 {[%emt 0:02:40]} c3+ {[%emt 0:00:07]} 28. Kxc3 {[%emt 0:07:19]} Rc8+ {[%emt 0:00:05]} 29. Kb2 {[%emt 0:00:10]} Rxc2+ {[%emt 0:00:08]} 30. Kxc2 {[%emt 0:00:29]} Qd2+ {[%emt 0:00:03]} 31. Kb1 {[%emt 0:00:21]} Rxe4 {[%emt 0:00:02]} 32. Qd1 {[%emt 0:03:42]} Re1 {[%emt 0:00:07]} 33. g4 {[%emt 0:04:21]} Qxd1+ {[%emt 0:00:08]} 0-1

[Event "55th Biel Festival MTO 2022"]
[Site "Biel"]
[Date "2022.07.15"]
[Round "1.16"]
[White "Erdos Viktor"]
[Black "Gomez Barrera Javiera Belen"]
[Result "1-0"]
[ECO "E62"]
[WhiteElo "2586"]
[BlackElo "2210"]
[Annotator "ChessBase"]
[PlyCount "43"]
[EventDate "2022.07.13"]
[EventType "swiss"]
[EventCountry "SUI"]
[SourceTitle "playchess.com"]
[Source "ChessBase"]
[SourceQuality "1"]
[TimeControl "40/5400+30:1800+30"]

1. d4 {[%emt 0:08:53]} Nf6 {[%emt 0:00:40]} 2. c4 {[%emt 0:00:10]} g6 {[%emt 0:00:18]} 3. g3 {[%emt 0:00:09]} Bg7 {[%emt 0:00:12]} 4. Bg2 {[%emt 0:00:07]} d6 {[%emt 0:01:31]} 5. Nc3 {[%emt 0:00:15]} O-O {[%emt 0:00:29]} 6. Nf3 {[%emt 0:00:06]} Nc6 {[%emt 0:03:26]} 7. O-O {[%emt 0:00:12]} e5 {[%emt 0:00:21]} 8. h3 {[%emt 0:00:06]} exd4 {[%emt 0:12:07]} 9. Nxd4 {[%emt 0:02:34]} Nxd4 {[%emt 0:02:28]} 10. Qxd4 {[%emt 0:00:07]} Be6 {[%emt 0:02:07]} 11. Qh4 {[%emt 0:02:10]} Nh5 {[%emt 0:19:03]} 12. Bg5 {[%emt 0:03:54]} Bf6 {[%emt 0:00:44]} 13. Bxf6 {[%emt 0:04:27]} Qxf6 {[%emt 0:00:36]} 14. Qxf6 {[%emt 0:19:33]} Nxf6 {[%emt 0:34:21]} 15. b3 {[%emt 0:00:30]} Rab8 {[%emt 0:00:30]} 16. Nb5 {[%emt 0:00:30]} Ne8 {[%emt 0:00:30]} 17. Rfd1 {[%emt 0:00:30]} a6 {[%emt 0:00:30]} 18. Nd4 {[%emt 0:00:30]} Ng7 {[%emt 0:00:30]} 19. Rd3 {[%emt 0:00:30]} Nf5 {[%emt 0:00:30]} 20. e4 {[%emt 0:00:30]} Kg7 {[%emt 0:12:12]} 21. h4 {[%emt 0:24:08]} h6 {[%emt 0:05:48]} 22. g4 {[%emt 0:30:49]} 1-0

[Event "55th Biel Festival MTO 2022"]
[Site "Biel"]
[Date "2022.07.15"]
[Round "1.17"]
[White "Vasquez Toledo Cristian"]
[Black "Mendonca Leon Luke"]
[Result "0-1"]
[ECO "B12"]
[WhiteElo "2206"]
[BlackElo "2567"]
[Annotator "ChessBase"]
[PlyCount "66"]
[EventDate "2022.07.13"]
[EventType "swiss"]
[EventCountry "SUI"]
[SourceTitle "playchess.com"]
[Source "ChessBase"]
[SourceQuality "1"]
[TimeControl "40/5400+30:1800+30"]

1. e4 {[%emt 0:04:07]} c6 {[%emt 0:00:29]} 2. d4 {[%emt 0:00:07]} d5 {[%emt 0:00:06]} 3. e5 {[%emt 0:00:05]} c5 {[%emt 0:00:34]} 4. Nf3 {[%emt 0:00:51]} cxd4 {[%emt 0:00:23]} 5. Qxd4 {[%emt 0:00:07]} Nc6 {[%emt 0:00:41]} 6. Qf4 {[%emt 0:00:06]} e6 {[%emt 0:01:09]} 7. a3 {[%emt 0:05:41]} f6 {[%emt 0:02:56]} 8. Nc3 {[%emt 0:18:48]} Nh6 {[%emt 0:11:13]} 9. Bb5 {[%emt 0:41:32]} Nf7 {[%emt 0:31:19]} 10. O-O {[%emt 0:00:30]} Be7 {[%emt 0:00:30]} 11. Qg3 {[%emt 0:00:30]} O-O {[%emt 0:00:30]} 12. exf6 {[%emt 0:00:30]} Bxf6 {[%emt 0:00:30]} 13. Bxc6 {[%emt 0:00:30]} bxc6 {[%emt 0:00:30]} 14. Bf4 {[%emt 0:00:30]} Qb6 {[%emt 0:00:30]} 15. Rab1 {[%emt 0:01:06]} c5 {[%emt 0:04:58]} 16. Rfe1 {[%emt 0:00:32]} Bd7 {[%emt 0:06:29]} 17. Ne5 {[%emt 0:03:57]} Nxe5 {[%emt 0:02:46]} 18. Bxe5 {[%emt 0:00:09]} a5 {[%emt 0:02:18]} 19. b3 {[%emt 0:02:19]} Rf7 {[%emt 0:07:49]} 20. Re2 {[%emt 0:09:36]} Bxe5 {[%emt 0:05:00]} 21. Rxe5 {[%emt 0:00:51]} Raf8 {[%emt 0:00:33]} 22. Rg5 {[%emt 0:01:00]} Qb8 {[%emt 0:03:33]} 23. Qxb8 {[%emt 0:03:28]} Rxb8 {[%emt 0:00:01]} 24. a4 {[%emt 0:01:35]} Rf4 {[%emt 0:02:37]} 25. Kf1 {[%emt 0:03:35]} c4 {[%emt 0:02:12]} 26. Ke2 {[%emt 0:00:55]} cxb3 {[%emt 0:00:16]} 27. cxb3 {[%emt 0:00:31]} Rfb4 {[%emt 0:00:11]} 28. Rc1 {[%emt 0:00:31]} Rc8 {[%emt 0:01:50]} 29. Kd2 {[%emt 0:00:29]} Rxb3 {[%emt 0:00:20]} 30. Rc2 {[%emt 0:00:21]} Rb4 {[%emt 0:01:02]} 31. Re5 {[%emt 0:00:35]} Rd4+ {[%emt 0:00:15]} 32. Ke3 {[%emt 0:00:35]} Rdc4 {[%emt 0:00:07]} 33. Kd3 {[%emt 0:00:26]} d4 {[%emt 0:00:48]} 0-1

[Event "55th Biel Festival MTO 2022"]
[Site "Biel"]
[Date "2022.07.15"]
[Round "1.19"]
[White "Schlegel Igor"]
[Black "Petrov Martin"]
[Result "1/2-1/2"]
[ECO "B53"]
[WhiteElo "2194"]
[BlackElo "2534"]
[Annotator "ChessBase"]
[PlyCount "58"]
[EventDate "2022.07.13"]
[EventType "swiss"]
[EventCountry "SUI"]
[SourceTitle "playchess.com"]
[Source "ChessBase"]
[SourceQuality "1"]
[TimeControl "40/5400+30:1800+30"]

1. e4 {[%emt 0:00:03]} c5 {[%emt 0:01:03]} 2. Nf3 {[%emt 0:00:05]} d6 {[%emt 0:00:06]} 3. d4 {[%emt 0:00:07]} cxd4 {[%emt 0:00:07]} 4. Qxd4 {[%emt 0:00:33]} Nf6 {[%emt 0:00:20]} 5. Be2 {[%emt 0:00:10]} Nc6 {[%emt 0:00:31]} 6. Qe3 {[%emt 0:00:05]} g6 {[%emt 0:00:38]} 7. O-O {[%emt 0:00:09]} Bg7 {[%emt 0:00:09]} 8. h3 {[%emt 0:00:06]} O-O {[%emt 0:00:20]} 9. Rd1 {[%emt 0:00:04]} Nd7 {[%emt 0:01:39]} 10. Nc3 {[%emt 0:00:18]} Nb4 {[%emt 0:09:30]} 11. Rd2 {[%emt 0:22:25]} b6 {[%emt 0:04:35]} 12. b3 {[%emt 0:09:53]} Bb7 {[%emt 0:44:34]} 13. Bb2 {[%emt 0:36:54]} Rc8 {[%emt 0:00:30]} 14. Rb1 {[%emt 0:00:30]} a6 {[%emt 0:00:30]} 15. a3 {[%emt 0:00:30]} Nc6 {[%emt 0:00:30]} 16. Nd5 {[%emt 0:00:30]} Bxb2 {[%emt 0:00:30]} 17. Rxb2 {[%emt 0:00:30]} e6 {[%emt 0:00:30]} 18. Nf4 {[%emt 0:00:30]} Nde5 {[%emt 0:02:43]} 19. Nxe5 {[%emt 0:10:52]} Nxe5 {[%emt 0:00:08]} 20. c4 {[%emt 0:00:27]} Qc7 {[%emt 0:02:09]} 21. Rd4 {[%emt 0:03:25]} Rfd8 {[%emt 0:07:21]} 22. Rbd2 {[%emt 0:00:57]} Nc6 {[%emt 0:00:47]} 23. R4d3 {[%emt 0:00:11]} Ne5 {[%emt 0:00:06]} 24. Rd4 {[%emt 0:00:34]} a5 {[%emt 0:02:43]} 25. h4 {[%emt 0:09:35]} Nc6 {[%emt 0:08:26]} 26. R4d3 {[%emt 0:00:11]} Ne5 {[%emt 0:00:06]} 27. Rd4 {[%emt 0:00:13]} Qe7 {[%emt 0:07:22]} 28. h5 {[%emt 0:00:45]} g5 {[%emt 0:01:13]} 29. Nh3 {[%emt 0:00:42]} h6 {[%emt 0:01:42]} 1/2-1/2

[Event "55th Biel Festival MTO 2022"]
[Site "Biel"]
[Date "2022.07.15"]
[Round "1.20"]
[White "Iniyan P"]
[Black "Acikel Mert"]
[Result "1-0"]
[ECO "D58"]
[WhiteElo "2533"]
[BlackElo "2172"]
[Annotator "ChessBase"]
[PlyCount "42"]
[EventDate "2022.07.13"]
[EventType "swiss"]
[EventCountry "SUI"]
[SourceTitle "playchess.com"]
[Source "ChessBase"]
[SourceQuality "1"]
[TimeControl "40/5400+30:1800+30"]

1. d4 {[%emt 0:00:43]} d5 {[%emt 0:00:13]} 2. c4 {[%emt 0:00:06]} e6 {[%emt 0:00:08]} 3. Nc3 {[%emt 0:00:06]} Nf6 {[%emt 0:00:06]} 4. Bg5 {[%emt 0:00:13]} Be7 {[%emt 0:00:12]} 5. e3 {[%emt 0:00:03]} h6 {[%emt 0:00:19]} 6. Bh4 {[%emt 0:00:05]} O-O {[%emt 0:00:15]} 7. Nf3 {[%emt 0:00:24]} b6 {[%emt 0:00:15]} 8. Qb3 {[%emt 0:00:08]} Bb7 {[%emt 0:03:12]} 9. Bxf6 {[%emt 0:00:08]} Bxf6 {[%emt 0:00:10]} 10. cxd5 {[%emt 0:00:04]} exd5 {[%emt 0:00:25]} 11. Rd1 {[%emt 0:00:05]} Re8 {[%emt 0:06:33]} 12. Bd3 {[%emt 0:00:06]} c6 {[%emt 0:00:20]} 13. O-O {[%emt 0:00:09]} Nd7 {[%emt 0:00:17]} 14. e4 {[%emt 0:00:12]} dxe4 {[%emt 0:00:31]} 15. Nxe4 {[%emt 0:00:36]} Qc7 {[%emt 0:00:48]} 16. Rfe1 {[%emt 0:01:58]} Rad8 {[%emt 0:03:26]} 17. Re3 {[%emt 0:07:20]} c5 {[%emt 0:11:54]} 18. d5 {[%emt 0:01:03]} Bd4 {[%emt 0:00:11]} 19. d6 {[%emt 0:05:34]} Qb8 {[%emt 0:01:13]} 20. Neg5 {[%emt 0:00:18]} Rf8 {[%emt 0:12:17]} 21. Nxf7 {[%emt 0:01:51]} Rxf7 {[%emt 0:00:41]} 1-0

[Event "55th Biel Festival MTO 2022"]
[Site "Biel"]
[Date "2022.07.15"]
[Round "1.22"]
[White "Gagare Shardul"]
[Black "Ludwig Peter"]
[Result "1-0"]
[ECO "A38"]
[WhiteElo "2514"]
[BlackElo "2163"]
[Annotator "ChessBase"]
[PlyCount "68"]
[EventDate "2022.07.13"]
[EventType "swiss"]
[EventCountry "SUI"]
[SourceTitle "playchess.com"]
[Source "ChessBase"]
[SourceQuality "1"]
[TimeControl "40/5400+30:1800+30"]

1. Nf3 {[%emt 0:01:03]} Nf6 {[%emt 0:00:24]} 2. c4 {[%emt 0:00:24]} c5 {[%emt 0:00:17]} 3. g3 {[%emt 0:01:29]} Nc6 {[%emt 0:00:12]} 4. Bg2 {[%emt 0:00:11]} g6 {[%emt 0:00:15]} 5. b3 {[%emt 0:04:17]} Bg7 {[%emt 0:01:34]} 6. Bb2 {[%emt 0:00:06]} O-O {[%emt 0:00:19]} 7. O-O {[%emt 0:01:10]} d6 {[%emt 0:13:54]} 8. Nc3 {[%emt 0:06:31]} Bd7 {[%emt 0:03:15]} 9. e3 {[%emt 0:11:08]} Qc8 {[%emt 0:04:20]} 10. d4 {[%emt 0:10:13]} Bg4 {[%emt 0:05:53]} 11. Qd3 {[%emt 0:22:19]} e5 {[%emt 0:05:59]} 12. d5 {[%emt 0:00:30]} Ne7 {[%emt 0:06:12]} 13. Nd2 {[%emt 0:02:28]} Qd7 {[%emt 0:15:11]} 14. f4 {[%emt 0:01:25]} exf4 {[%emt 0:00:50]} 15. Rxf4 {[%emt 0:02:09]} Rae8 {[%emt 0:05:46]} 16. Nce4 {[%emt 0:14:11]} Nxe4 {[%emt 0:03:08]} 17. Bxg7 {[%emt 0:00:54]} Nxg3 {[%emt 0:04:53]} 18. hxg3 {[%emt 0:13:00]} Kxg7 {[%emt 0:00:43]} 19. Qc3+ {[%emt 0:04:35]} f6 {[%emt 0:01:03]} 20. Ne4 {[%emt 0:00:22]} Ng8 {[%emt 0:01:24]} 21. Nxd6 {[%emt 0:01:33]} Qxd6 {[%emt 0:03:00]} 22. Rxg4 {[%emt 0:00:02]} Re5 {[%emt 0:00:24]} 23. Rf4 {[%emt 0:00:10]} Rfe8 {[%emt 0:01:06]} 24. e4 {[%emt 0:00:04]} g5 {[%emt 0:10:52]} 25. Rf2 {[%emt 0:00:07]} Nh6 {[%emt 0:00:04]} 26. Bf3 {[%emt 0:01:47]} Nf5 {[%emt 0:07:46]} 27. exf5 {[%emt 0:00:07]} Re3 {[%emt 0:00:05]} 28. Qd2 {[%emt 0:00:23]} Qxg3+ {[%emt 0:01:04]} 29. Bg2 {[%emt 0:00:03]} h5 {[%emt 0:00:17]} 30. d6 {[%emt 0:00:50]} Rd3 {[%emt 0:00:23]} 31. d7 {[%emt 0:00:26]} Rd8 {[%emt 0:01:03]} 32. Qe2 {[%emt 0:00:08]} R8xd7 {[%emt 0:01:23]} 33. Qxh5 {[%emt 0:00:06]} Qe5 {[%emt 0:01:53]} 34. Raf1 {[%emt 0:00:25]} g4 {[%emt 0:00:00]} 1-0

[Event "55th Biel Festival MTO 2022"]
[Site "Biel"]
[Date "2022.07.15"]
[Round "1.23"]
[White "Jaksland Tim"]
[Black "Visakh N R"]
[Result "0-1"]
[ECO "C54"]
[WhiteElo "2149"]
[BlackElo "2503"]
[Annotator "ChessBase"]
[PlyCount "72"]
[EventDate "2022.07.13"]
[EventType "swiss"]
[EventCountry "SUI"]
[SourceTitle "playchess.com"]
[Source "ChessBase"]
[SourceQuality "1"]
[TimeControl "40/5400+30:1800+30"]

1. e4 {[%emt 0:00:08]} e5 {[%emt 0:00:32]} 2. Nf3 {[%emt 0:00:22]} Nc6 {[%emt 0:00:12]} 3. Bc4 {[%emt 0:00:44]} Bc5 {[%emt 0:00:26]} 4. d3 {[%emt 0:01:56]} Nf6 {[%emt 0:00:13]} 5. Bg5 {[%emt 0:01:11]} h6 {[%emt 0:00:24]} 6. Bh4 {[%emt 0:00:07]} d6 {[%emt 0:02:03]} 7. c3 {[%emt 0:02:26]} a6 {[%emt 0:00:06]} 8. a4 {[%emt 0:00:19]} Ba7 {[%emt 0:00:37]} 9. Nbd2 {[%emt 0:00:50]} Qe7 {[%emt 0:00:22]} 10. b4 {[%emt 0:05:20]} g5 {[%emt 0:07:31]} 11. Bg3 {[%emt 0:00:09]} Nh5 {[%emt 0:04:25]} 12. Qe2 {[%emt 0:22:25]} Qf6 {[%emt 0:05:41]} 13. b5 {[%emt 0:19:43]} Ne7 {[%emt 0:13:23]} 14. d4 {[%emt 0:06:35]} Ng6 {[%emt 0:03:27]} 15. Nxe5 {[%emt 0:21:36]} Nhf4 {[%emt 0:11:45]} 16. Bxf4 {[%emt 0:05:30]} Nxf4 {[%emt 0:00:20]} 17. Ng4 {[%emt 0:00:35]} Qe7 {[%emt 0:00:12]} 18. Qf3 {[%emt 0:00:41]} d5 {[%emt 0:00:14]} 19. g3 {[%emt 0:03:03]} dxe4 {[%emt 0:10:58]} 20. Qxe4 {[%emt 0:02:12]} Bxg4 {[%emt 0:00:05]} 21. Qxe7+ {[%emt 0:00:38]} Kxe7 {[%emt 0:00:01]} 22. gxf4 {[%emt 0:00:10]} axb5 {[%emt 0:00:54]} 23. Bxb5 {[%emt 0:01:29]} gxf4 {[%emt 0:00:04]} 24. f3 {[%emt 0:00:56]} Bh3 {[%emt 0:00:07]} 25. Bf1 {[%emt 0:01:59]} Bd7 {[%emt 0:00:27]} 26. a5 {[%emt 0:00:47]} Rhg8 {[%emt 0:01:02]} 27. Ne4 {[%emt 0:01:08]} Bb6 {[%emt 0:04:05]} 28. a6 {[%emt 0:00:51]} bxa6 {[%emt 0:02:25]} 29. Rxa6 {[%emt 0:00:24]} Rxa6 {[%emt 0:00:23]} 30. Bxa6 {[%emt 0:00:02]} Ra8 {[%emt 0:00:01]} 31. Be2 {[%emt 0:00:11]} Ra1+ {[%emt 0:00:41]} 32. Bd1 {[%emt 0:00:04]} f5 {[%emt 0:00:03]} 33. Nf2 {[%emt 0:00:19]} Ba5 {[%emt 0:00:24]} 34. Kd2 {[%emt 0:00:46]} Ra3 {[%emt 0:00:12]} 35. Nd3 {[%emt 0:01:52]} Bxc3+ {[%emt 0:00:16]} 36. Kc2 {[%emt 0:00:12]} Ba4+ {[%emt 0:00:06]} 0-1